[Event "Titled Tuesday Blitz August 08 Early 2023"]
[White "Rakhimgaliyev, Yerlan"]
[Black "Lisjak, Zlatko"]
[WhiteFideId "13705148"]
[BlackFideId "14502186"]
[WhiteElo "2383"]
[BlackElo "2186"]
[Result "1-0"]
[Round "6"]
[TimeControl "180+1"]
[Date "2023.08.08"]
[WhiteClock "0:00:34"]
[BlackClock "0:00:45"]
[Board "194"]

1. e4 {[%clk 0:03:00]}  c5 {[%clk 0:02:58]} 2. c3 {[%clk 0:03:00]}  d5 {[%clk 0:02:57]} 3. exd5 {[%clk 0:03:01]}  Qxd5 {[%clk 0:02:56]} 4. d4 {[%clk 0:03:01]}  Nf6 {[%clk 0:02:55]} 5. Nf3 {[%clk 0:03:02]}  e6 {[%clk 0:02:53]} 6. Na3 {[%clk 0:03:02]}  a6 {[%clk 0:02:52]} 7. Nc4 {[%clk 0:03:02]}  Nbd7 {[%clk 0:02:50]} 8. Nfe5 {[%clk 0:02:48]}  b5 {[%clk 0:02:41]} 9. Ne3 {[%clk 0:02:44]}  Qd6 {[%clk 0:02:38]} 10. Nxd7 {[%clk 0:02:35]}  Bxd7 {[%clk 0:02:33]} 11. Be2 {[%clk 0:02:29]}  cxd4 {[%clk 0:02:28]} 12. cxd4 {[%clk 0:02:30]}  Qb4+ {[%clk 0:02:16]} 13. Kf1 {[%clk 0:02:30]}  Bd6 {[%clk 0:02:01]} 14. h4 {[%clk 0:01:41]}  O-O {[%clk 0:01:59]} 15. h5 {[%clk 0:01:34]}  Rfd8 {[%clk 0:01:51]} 16. h6 {[%clk 0:01:33]}  g6 {[%clk 0:01:50]} 17. Rh4 {[%clk 0:01:32]}  Bf8 {[%clk 0:01:37]} 18. Bd2 {[%clk 0:00:55]}  Qe7 {[%clk 0:01:34]} 19. Ba5 {[%clk 0:00:54]}  Bc6 {[%clk 0:01:26]} 20. Bf3 {[%clk 0:00:44]}  Rd7 {[%clk 0:01:19]} 21. Bxc6 {[%clk 0:00:44]}  Raa7 {[%clk 0:01:11]} 22. Bxd7 {[%clk 0:00:44]}  Rxd7 {[%clk 0:01:12]} 23. Rc1 {[%clk 0:00:43]}  Ne8 {[%clk 0:01:04]} 24. g3 {[%clk 0:00:43]}  e5 {[%clk 0:01:03]} 25. d5 {[%clk 0:00:42]}  e4 {[%clk 0:01:00]} 26. Qg4 {[%clk 0:00:34]}  Nf6 {[%clk 0:00:57]} 27. Qg5 {[%clk 0:00:33]}  Nxd5 {[%clk 0:00:52]} 28. Qxe7 {[%clk 0:00:33]}  Nxe3+ {[%clk 0:00:53]} 29. fxe3 {[%clk 0:00:33]}  Bxe7 {[%clk 0:00:45]} 30. Rc8+ {[%clk 0:00:34]}  Bf8 {[%clk 0:00:45]} 31. Bb4 {[%clk 0:00:34]}  f5 {[%clk 0:00:45]} 32. Rxf8# {[%clk 0:00:34]} 1-0


[Site "https://www.chess.com"]

[Event "Titled Tuesday Blitz August 08 Early 2023"]
[White "Mitrovic, Darko R"]
[Black "Kanyamarala, Trisha"]
[WhiteFideId "927023"]
[BlackFideId "45004722"]
[WhiteElo "2139"]
[BlackElo "2360"]
[Result "0-1"]
[Round "6"]
[TimeControl "180+1"]
[Date "2023.08.08"]
[WhiteClock "0:00:00"]
[BlackClock "0:00:55"]
[Board "196"]

1. d4 {[%clk 0:02:55]}  Nf6 {[%clk 0:02:59]} 2. Nf3 {[%clk 0:02:55]}  d5 {[%clk 0:02:59]} 3. g3 {[%clk 0:02:56]}  e6 {[%clk 0:02:52]} 4. Bg2 {[%clk 0:02:57]}  a6 {[%clk 0:02:50]} 5. O-O {[%clk 0:02:57]}  b5 {[%clk 0:02:50]} 6. a4 {[%clk 0:02:57]}  Bb7 {[%clk 0:02:50]} 7. axb5 {[%clk 0:02:56]}  axb5 {[%clk 0:02:49]} 8. Rxa8 {[%clk 0:02:57]}  Bxa8 {[%clk 0:02:49]} 9. Nbd2 {[%clk 0:02:47]}  Nbd7 {[%clk 0:02:46]} 10. e3 {[%clk 0:02:43]}  c5 {[%clk 0:02:46]} 11. Qe2 {[%clk 0:02:35]}  c4 {[%clk 0:02:42]} 12. Ne5 {[%clk 0:02:35]}  Nxe5 {[%clk 0:02:41]} 13. dxe5 {[%clk 0:02:34]}  Nd7 {[%clk 0:02:41]} 14. f4 {[%clk 0:02:30]}  Bc5 {[%clk 0:02:40]} 15. Nf3 {[%clk 0:02:29]}  Qb6 {[%clk 0:02:39]} 16. c3 {[%clk 0:02:17]}  O-O {[%clk 0:02:37]} 17. Nd4 {[%clk 0:02:17]}  f6 {[%clk 0:02:27]} 18. exf6 {[%clk 0:02:12]}  Nxf6 {[%clk 0:02:28]} 19. f5 {[%clk 0:01:44]}  exf5 {[%clk 0:02:21]} 20. Rxf5 {[%clk 0:01:40]}  Re8 {[%clk 0:02:17]} 21. Qf3 {[%clk 0:01:09]}  b4 {[%clk 0:02:11]} 22. Bd2 {[%clk 0:00:55]}  Bb7 {[%clk 0:01:52]} 23. g4 {[%clk 0:00:49]}  Bc8 {[%clk 0:01:49]} 24. Rxf6 {[%clk 0:00:41]}  gxf6 {[%clk 0:01:45]} 25. Qxd5+ {[%clk 0:00:40]}  Kh8 {[%clk 0:01:43]} 26. Qxc4 {[%clk 0:00:34]}  Bxg4 {[%clk 0:01:35]} 27. cxb4 {[%clk 0:00:24]}  Bd6 {[%clk 0:01:30]} 28. Qc6 {[%clk 0:00:13]}  Qb8 {[%clk 0:01:17]} 29. h3 {[%clk 0:00:12]}  Bh5 {[%clk 0:01:04]} 30. Qd5 {[%clk 0:00:10]}  Re5 {[%clk 0:00:56]} 31. Nc6 {[%clk 0:00:07]}  Rxd5 {[%clk 0:00:55]} 32. Nxb8 {[%clk 0:00:00]}  Rxd2 {[%clk 0:00:55]} 0-1


[Site "https://www.chess.com"]

[Event "Titled Tuesday Blitz August 08 Early 2023"]
[White "Zaichenko, Daria"]
[Black "Rama, Tejas"]
[WhiteFideId "4197453"]
[BlackFideId "30907381"]
[WhiteElo "2228"]
[BlackElo "2500"]
[Result "0-1"]
[Round "6"]
[TimeControl "180+1"]
[Date "2023.08.08"]
[WhiteClock "0:00:01"]
[BlackClock "0:00:04"]
[Board "201"]

1. e4 {[%clk 0:03:00]}  c5 {[%clk 0:02:56]} 2. Nf3 {[%clk 0:03:00]}  d6 {[%clk 0:02:54]} 3. d4 {[%clk 0:03:00]}  cxd4 {[%clk 0:02:55]} 4. Nxd4 {[%clk 0:02:55]}  Nf6 {[%clk 0:02:54]} 5. Nc3 {[%clk 0:02:55]}  Nc6 {[%clk 0:02:54]} 6. Bc4 {[%clk 0:02:52]}  Qb6 {[%clk 0:02:53]} 7. Nb3 {[%clk 0:02:46]}  e6 {[%clk 0:02:52]} 8. Be3 {[%clk 0:02:44]}  Qc7 {[%clk 0:02:52]} 9. O-O {[%clk 0:02:43]}  a6 {[%clk 0:02:48]} 10. a4 {[%clk 0:02:40]}  Be7 {[%clk 0:02:38]} 11. f4 {[%clk 0:02:38]}  Bd7 {[%clk 0:02:22]} 12. a5 {[%clk 0:02:38]}  Nb4 {[%clk 0:02:14]} 13. Be2 {[%clk 0:02:34]}  Bc6 {[%clk 0:01:54]} 14. Bb6 {[%clk 0:02:29]}  Qc8 {[%clk 0:01:49]} 15. Bf3 {[%clk 0:02:20]}  O-O {[%clk 0:01:38]} 16. Nd4 {[%clk 0:02:04]}  Bd7 {[%clk 0:01:22]} 17. e5 {[%clk 0:01:56]}  Nfd5 {[%clk 0:01:15]} 18. Nxd5 {[%clk 0:01:54]}  Nxd5 {[%clk 0:01:12]} 19. Bxd5 {[%clk 0:01:52]}  dxe5 {[%clk 0:00:59]} 20. Bxb7 {[%clk 0:01:41]}  Qxb7 {[%clk 0:00:58]} 21. fxe5 {[%clk 0:01:42]}  Rac8 {[%clk 0:00:52]} 22. Nb3 {[%clk 0:01:28]}  Bc6 {[%clk 0:00:44]} 23. Qg4 {[%clk 0:01:22]}  Bd5 {[%clk 0:00:44]} 24. Qg3 {[%clk 0:01:16]}  Rxc2 {[%clk 0:00:43]} 25. Rf2 {[%clk 0:01:06]}  Rxf2 {[%clk 0:00:28]} 26. Kxf2 {[%clk 0:01:06]}  Rc8 {[%clk 0:00:26]} 27. Rd1 {[%clk 0:00:57]}  Rc2+ {[%clk 0:00:23]} 28. Rd2 {[%clk 0:00:57]}  Bxb3 {[%clk 0:00:21]} 29. Rxc2 {[%clk 0:00:53]}  Bxc2 {[%clk 0:00:21]} 30. Qc3 {[%clk 0:00:52]}  Be4 {[%clk 0:00:19]} 31. Qd4 {[%clk 0:00:48]}  Bxg2 {[%clk 0:00:18]} 32. Qa4 {[%clk 0:00:47]}  Qf3+ {[%clk 0:00:17]} 33. Ke1 {[%clk 0:00:46]}  Qf1+ {[%clk 0:00:14]} 34. Kd2 {[%clk 0:00:47]}  h6 {[%clk 0:00:14]} 35. Qe8+ {[%clk 0:00:45]}  Bf8 {[%clk 0:00:12]} 36. b4 {[%clk 0:00:41]}  Qf4+ {[%clk 0:00:12]} 37. Kc2 {[%clk 0:00:40]}  Qc4+ {[%clk 0:00:10]} 38. Kd1 {[%clk 0:00:38]}  Qb3+ {[%clk 0:00:10]} 39. Ke2 {[%clk 0:00:38]}  Bf3+ {[%clk 0:00:11]} 40. Kf2 {[%clk 0:00:37]}  Be4 {[%clk 0:00:10]} 41. Bc5 {[%clk 0:00:36]}  Qf3+ {[%clk 0:00:09]} 42. Ke1 {[%clk 0:00:36]}  Kh7 {[%clk 0:00:08]} 43. Bxf8 {[%clk 0:00:28]}  Qe3+ {[%clk 0:00:07]} 44. Kd1 {[%clk 0:00:26]}  Bd3 {[%clk 0:00:01]} 45. Qc8 {[%clk 0:00:23]}  Qe2+ {[%clk 0:00:02]} 46. Kc1 {[%clk 0:00:24]}  Qe1+ {[%clk 0:00:02]} 47. Kb2 {[%clk 0:00:22]}  Qb1+ {[%clk 0:00:03]} 48. Ka3 {[%clk 0:00:22]}  Bc2 {[%clk 0:00:03]} 49. Qc3 {[%clk 0:00:20]}  Bf5 {[%clk 0:00:03]} 50. Bc5 {[%clk 0:00:19]}  Qe4 {[%clk 0:00:03]} 51. Qe3 {[%clk 0:00:17]}  Qd5 {[%clk 0:00:03]} 52. Kb2 {[%clk 0:00:16]}  Qc4 {[%clk 0:00:03]} 53. Qc3 {[%clk 0:00:16]}  Qe2+ {[%clk 0:00:03]} 54. Ka3 {[%clk 0:00:16]}  g5 {[%clk 0:00:04]} 55. Bd6 {[%clk 0:00:13]}  Qxh2 {[%clk 0:00:04]} 56. Qc7 {[%clk 0:00:12]}  Qg3+ {[%clk 0:00:05]} 57. Kb2 {[%clk 0:00:12]}  Qf2+ {[%clk 0:00:05]} 58. Ka3 {[%clk 0:00:12]}  Kg6 {[%clk 0:00:05]} 59. Qc3 {[%clk 0:00:10]}  g4 {[%clk 0:00:04]} 60. Qc4 {[%clk 0:00:10]}  Qf3+ {[%clk 0:00:04]} 61. Kb2 {[%clk 0:00:10]}  Qd3 {[%clk 0:00:05]} 62. Qc8 {[%clk 0:00:04]}  Qb1+ {[%clk 0:00:04]} 63. Ka3 {[%clk 0:00:04]}  Qa1+ {[%clk 0:00:05]} 64. Kb3 {[%clk 0:00:04]}  Kh5 {[%clk 0:00:05]} 65. Qc2 {[%clk 0:00:01]}  Bxc2+ {[%clk 0:00:04]} 0-1


[Site "https://www.chess.com"]

[Event "Titled Tuesday Blitz August 08 Early 2023"]
[White "Clawitter, Craig"]
[Black "Avazkhonov, Alikhon"]
[WhiteFideId "2023105"]
[BlackFideId "14208504"]
[WhiteElo "2210"]
[BlackElo "2394"]
[Result "0-1"]
[Round "6"]
[TimeControl "180+1"]
[Date "2023.08.08"]
[WhiteClock "0:00:00"]
[BlackClock "0:00:14"]
[Board "204"]

1. e4 {[%clk 0:03:00]}  c6 {[%clk 0:02:56]} 2. d4 {[%clk 0:03:00]}  d5 {[%clk 0:02:57]} 3. e5 {[%clk 0:03:01]}  c5 {[%clk 0:02:54]} 4. dxc5 {[%clk 0:03:00]}  Nc6 {[%clk 0:02:54]} 5. a3 {[%clk 0:02:56]}  e6 {[%clk 0:02:53]} 6. Nf3 {[%clk 0:02:54]}  Bxc5 {[%clk 0:02:25]} 7. b4 {[%clk 0:02:54]}  Be7 {[%clk 0:02:23]} 8. Bd3 {[%clk 0:02:48]}  f6 {[%clk 0:02:19]} 9. Bb2 {[%clk 0:02:39]}  Nh6 {[%clk 0:02:10]} 10. O-O {[%clk 0:02:09]}  Nf7 {[%clk 0:02:08]} 11. exf6 {[%clk 0:01:22]}  Bxf6 {[%clk 0:02:08]} 12. Nc3 {[%clk 0:01:22]}  O-O {[%clk 0:01:39]} 13. Na4 {[%clk 0:01:09]}  e5 {[%clk 0:01:36]} 14. Bb5 {[%clk 0:00:34]}  Bg4 {[%clk 0:01:23]} 15. h3 {[%clk 0:00:28]}  Bh5 {[%clk 0:01:22]} 16. g4 {[%clk 0:00:28]}  Bg6 {[%clk 0:01:22]} 17. Re1 {[%clk 0:00:20]}  e4 {[%clk 0:01:07]} 18. Bxc6 {[%clk 0:00:17]}  bxc6 {[%clk 0:01:06]} 19. Nd4 {[%clk 0:00:16]}  Ng5 {[%clk 0:00:59]} 20. Nxc6 {[%clk 0:00:13]}  Qd6 {[%clk 0:00:57]} 21. Bxf6 {[%clk 0:00:08]}  Nf3+ {[%clk 0:00:56]} 22. Kg2 {[%clk 0:00:05]}  Rxf6 {[%clk 0:00:52]} 23. Qxd5+ {[%clk 0:00:05]}  Qxd5 {[%clk 0:00:50]} 24. Ne7+ {[%clk 0:00:05]}  Kf7 {[%clk 0:00:47]} 25. Nxd5 {[%clk 0:00:06]}  Nxe1+ {[%clk 0:00:46]} 26. Rxe1 {[%clk 0:00:05]}  Rd6 {[%clk 0:00:43]} 27. c4 {[%clk 0:00:05]}  Rc8 {[%clk 0:00:43]} 28. Nc5 {[%clk 0:00:05]}  a5 {[%clk 0:00:42]} 29. Nxe4 {[%clk 0:00:05]}  Bxe4+ {[%clk 0:00:36]} 30. Rxe4 {[%clk 0:00:05]}  axb4 {[%clk 0:00:37]} 31. axb4 {[%clk 0:00:05]}  Rdc6 {[%clk 0:00:32]} 32. Re7+ {[%clk 0:00:02]}  Kf8 {[%clk 0:00:28]} 33. c5 {[%clk 0:00:02]}  Ra6 {[%clk 0:00:16]} 34. Re5 {[%clk 0:00:01]}  Rb8 {[%clk 0:00:16]} 35. Rf5+ {[%clk 0:00:00]}  Kg8 {[%clk 0:00:14]} 0-1


[Site "https://www.chess.com"]

[Event "Titled Tuesday Blitz August 08 Early 2023"]
[White "Luxama, Jacques Muller"]
[Black "Carrasco Miranda, Andres"]
[WhiteFideId "11900113"]
[BlackFideId "3405990"]
[WhiteElo "2203"]
[BlackElo "2358"]
[Result "1-0"]
[Round "6"]
[TimeControl "180+1"]
[Date "2023.08.08"]
[WhiteClock "0:01:27"]
[BlackClock "0:00:25"]
[Board "207"]

1. e4 {[%clk 0:02:59]}  e5 {[%clk 0:02:58]} 2. Nf3 {[%clk 0:02:59]}  Nc6 {[%clk 0:02:58]} 3. Bc4 {[%clk 0:02:59]}  Bc5 {[%clk 0:02:57]} 4. d3 {[%clk 0:02:58]}  Nf6 {[%clk 0:02:57]} 5. O-O {[%clk 0:02:57]}  d6 {[%clk 0:02:57]} 6. c3 {[%clk 0:02:56]}  a5 {[%clk 0:02:56]} 7. a4 {[%clk 0:02:56]}  Be6 {[%clk 0:02:54]} 8. Qb3 {[%clk 0:02:53]}  Bxc4 {[%clk 0:02:53]} 9. Qxc4 {[%clk 0:02:54]}  h6 {[%clk 0:02:50]} 10. Be3 {[%clk 0:02:54]}  Ba7 {[%clk 0:02:48]} 11. Nbd2 {[%clk 0:02:53]}  Qd7 {[%clk 0:02:48]} 12. h3 {[%clk 0:02:51]}  O-O {[%clk 0:02:47]} 13. Bxa7 {[%clk 0:02:47]}  Rxa7 {[%clk 0:02:47]} 14. Nh4 {[%clk 0:02:44]}  d5 {[%clk 0:02:43]} 15. exd5 {[%clk 0:02:41]}  Qxd5 {[%clk 0:02:43]} 16. Nf5 {[%clk 0:02:31]}  Rd8 {[%clk 0:02:37]} 17. Qxd5 {[%clk 0:02:03]}  Nxd5 {[%clk 0:02:34]} 18. Nf3 {[%clk 0:01:53]}  Ra6 {[%clk 0:02:25]} 19. d4 {[%clk 0:01:52]}  Rb6 {[%clk 0:02:09]} 20. Rab1 {[%clk 0:01:46]}  Re8 {[%clk 0:01:06]} 21. Rfe1 {[%clk 0:01:43]}  e4 {[%clk 0:01:02]} 22. Nd2 {[%clk 0:01:43]}  g6 {[%clk 0:00:48]} 23. Nxh6+ {[%clk 0:01:41]}  Kg7 {[%clk 0:00:48]} 24. Ng4 {[%clk 0:01:42]}  f5 {[%clk 0:00:49]} 25. Ne3 {[%clk 0:01:42]}  Nf4 {[%clk 0:00:49]} 26. Ndc4 {[%clk 0:01:41]}  Ra6 {[%clk 0:00:45]} 27. h4 {[%clk 0:01:35]}  Nd3 {[%clk 0:00:44]} 28. Re2 {[%clk 0:01:34]}  Ne7 {[%clk 0:00:35]} 29. f3 {[%clk 0:01:32]}  Nd5 {[%clk 0:00:33]} 30. Nxd5 {[%clk 0:01:31]}  c6 {[%clk 0:00:25]} 31. Nc7 {[%clk 0:01:27]} 1-0


[Site "https://www.chess.com"]

[Event "Titled Tuesday Blitz August 08 Early 2023"]
[White "Valle Maytin, Luis Enrique"]
[Black "Floresvillar Gonzalez, Luis Migu"]
[WhiteFideId "3503666"]
[BlackFideId "5100542"]
[WhiteElo "2308"]
[BlackElo "2153"]
[Result "1-0"]
[Round "6"]
[TimeControl "180+1"]
[Date "2023.08.08"]
[WhiteClock "0:00:22"]
[BlackClock "0:00:00"]
[Board "213"]

1. d4 {[%clk 0:03:00]}  d5 {[%clk 0:02:57]} 2. Nf3 {[%clk 0:03:01]}  c6 {[%clk 0:02:55]} 3. e3 {[%clk 0:03:00]}  Bf5 {[%clk 0:02:54]} 4. Bd3 {[%clk 0:03:01]}  e6 {[%clk 0:02:53]} 5. O-O {[%clk 0:03:00]}  Nf6 {[%clk 0:02:52]} 6. Nbd2 {[%clk 0:02:58]}  Nbd7 {[%clk 0:02:45]} 7. Qe2 {[%clk 0:02:57]}  Ne4 {[%clk 0:02:40]} 8. Bxe4 {[%clk 0:02:50]}  dxe4 {[%clk 0:02:34]} 9. Ne5 {[%clk 0:02:49]}  Nxe5 {[%clk 0:02:33]} 10. dxe5 {[%clk 0:02:50]}  Qc7 {[%clk 0:02:26]} 11. Nc4 {[%clk 0:02:49]}  b5 {[%clk 0:02:22]} 12. Nd6+ {[%clk 0:02:49]}  Bxd6 {[%clk 0:02:21]} 13. exd6 {[%clk 0:02:50]}  Qxd6 {[%clk 0:02:21]} 14. b3 {[%clk 0:02:50]}  O-O {[%clk 0:02:20]} 15. Bb2 {[%clk 0:02:49]}  Rfd8 {[%clk 0:02:17]} 16. Rfd1 {[%clk 0:02:37]}  Qc5 {[%clk 0:02:16]} 17. Bd4 {[%clk 0:02:34]}  Qe7 {[%clk 0:02:15]} 18. a4 {[%clk 0:02:27]}  e5 {[%clk 0:02:09]} 19. Bc3 {[%clk 0:02:17]}  b4 {[%clk 0:02:07]} 20. Bb2 {[%clk 0:02:17]}  a5 {[%clk 0:02:05]} 21. Qc4 {[%clk 0:02:09]}  c5 {[%clk 0:02:00]} 22. h3 {[%clk 0:02:02]}  h6 {[%clk 0:01:50]} 23. Rd5 {[%clk 0:01:57]}  Rxd5 {[%clk 0:01:48]} 24. Qxd5 {[%clk 0:01:57]}  Rd8 {[%clk 0:01:36]} 25. Qxe5 {[%clk 0:01:57]}  Qxe5 {[%clk 0:01:36]} 26. Bxe5 {[%clk 0:01:58]}  Rd2 {[%clk 0:01:36]} 27. Rc1 {[%clk 0:01:58]}  Be6 {[%clk 0:01:29]} 28. Bc7 {[%clk 0:01:57]}  c4 {[%clk 0:01:29]} 29. Bxa5 {[%clk 0:01:49]}  cxb3 {[%clk 0:01:28]} 30. cxb3 {[%clk 0:01:48]}  Bxb3 {[%clk 0:01:28]} 31. Bxb4 {[%clk 0:01:47]}  Rc2 {[%clk 0:01:23]} 32. Ra1 {[%clk 0:01:41]}  Ra2 {[%clk 0:01:21]} 33. Rxa2 {[%clk 0:01:38]}  Bxa2 {[%clk 0:01:21]} 34. Kh2 {[%clk 0:01:36]}  f5 {[%clk 0:01:13]} 35. Kg3 {[%clk 0:01:33]}  g5 {[%clk 0:01:11]} 36. h4 {[%clk 0:01:32]}  Kf7 {[%clk 0:01:10]} 37. a5 {[%clk 0:01:28]}  Bc4 {[%clk 0:01:09]} 38. h5 {[%clk 0:01:20]}  Be2 {[%clk 0:01:06]} 39. Bc5 {[%clk 0:01:13]}  Ba6 {[%clk 0:00:54]} 40. Bd4 {[%clk 0:01:00]}  Bb7 {[%clk 0:00:52]} 41. f4 {[%clk 0:00:56]}  g4 {[%clk 0:00:26]} 42. Kf2 {[%clk 0:00:49]}  Ba6 {[%clk 0:00:21]} 43. Ke1 {[%clk 0:00:44]}  Bc4 {[%clk 0:00:16]} 44. g3 {[%clk 0:00:44]}  Ke7 {[%clk 0:00:09]} 45. Kd2 {[%clk 0:00:36]}  Kd7 {[%clk 0:00:09]} 46. Kc3 {[%clk 0:00:35]}  Bf7 {[%clk 0:00:08]} 47. Kb4 {[%clk 0:00:30]}  Kc6 {[%clk 0:00:07]} 48. Bg7 {[%clk 0:00:26]}  Bxh5 {[%clk 0:00:07]} 49. Bxh6 {[%clk 0:00:26]}  Bf7 {[%clk 0:00:06]} 50. Bg7 {[%clk 0:00:26]}  Bd5 {[%clk 0:00:00]} 51. Be5 {[%clk 0:00:22]} 1-0


[Site "https://www.chess.com"]

[Event "Titled Tuesday Blitz August 08 Early 2023"]
[White "Kaminski, Victor"]
[Black "Butti, Enrique"]
[WhiteFideId "1131630"]
[BlackFideId "3700470"]
[WhiteElo "2298"]
[BlackElo "2152"]
[Result "0-1"]
[Round "6"]
[TimeControl "180+1"]
[Date "2023.08.08"]
[WhiteClock "0:01:22"]
[BlackClock "0:02:12"]
[Board "214"]

1. e4 {[%clk 0:03:00]}  c5 {[%clk 0:02:59]} 2. Nf3 {[%clk 0:02:59]}  d6 {[%clk 0:02:58]} 3. d4 {[%clk 0:03:00]}  cxd4 {[%clk 0:02:58]} 4. Nxd4 {[%clk 0:03:00]}  Nf6 {[%clk 0:02:57]} 5. Nc3 {[%clk 0:03:01]}  a6 {[%clk 0:02:57]} 6. Bd3 {[%clk 0:02:59]}  e6 {[%clk 0:02:55]} 7. g4 {[%clk 0:02:54]}  h6 {[%clk 0:02:52]} 8. h4 {[%clk 0:02:52]}  b5 {[%clk 0:02:47]} 9. a3 {[%clk 0:02:48]}  Bb7 {[%clk 0:02:46]} 10. Qe2 {[%clk 0:02:46]}  Nbd7 {[%clk 0:02:42]} 11. Rg1 {[%clk 0:02:40]}  h5 {[%clk 0:02:38]} 12. g5 {[%clk 0:02:36]}  Ng4 {[%clk 0:02:37]} 13. g6 {[%clk 0:02:31]}  Qxh4 {[%clk 0:02:33]} 14. gxf7+ {[%clk 0:02:30]}  Kxf7 {[%clk 0:02:32]} 15. Qf3+ {[%clk 0:02:20]}  Qf6 {[%clk 0:02:30]} 16. Qg3 {[%clk 0:01:55]}  Qxd4 {[%clk 0:02:23]} 17. f3 {[%clk 0:01:48]}  Nge5 {[%clk 0:02:17]} 18. Be2 {[%clk 0:01:36]}  h4 {[%clk 0:02:14]} 19. Qh3 {[%clk 0:01:22]}  Qxg1+ {[%clk 0:02:12]} 0-1


[Site "https://www.chess.com"]

[Event "Titled Tuesday Blitz August 08 Early 2023"]
[White "Fajdetic, Hrvoje"]
[Black "Maluco_do_Natal_00"]
[WhiteFideId "14501945"]
[WhiteElo "2290"]
[BlackElo "2071"]
[Result "1-0"]
[Round "6"]
[TimeControl "180+1"]
[Date "2023.08.08"]
[WhiteClock "0:00:42"]
[BlackClock "0:00:05"]
[Board "216"]

1. b3 {[%clk 0:02:46]}  e5 {[%clk 0:02:50]} 2. Bb2 {[%clk 0:02:45]}  Nc6 {[%clk 0:02:49]} 3. g3 {[%clk 0:02:45]}  Nf6 {[%clk 0:02:49]} 4. Bg2 {[%clk 0:02:45]}  Bc5 {[%clk 0:02:46]} 5. e3 {[%clk 0:02:45]}  d6 {[%clk 0:02:45]} 6. Ne2 {[%clk 0:02:45]}  O-O {[%clk 0:02:45]} 7. d4 {[%clk 0:02:43]}  exd4 {[%clk 0:02:45]} 8. exd4 {[%clk 0:02:44]}  Bb6 {[%clk 0:02:39]} 9. O-O {[%clk 0:02:44]}  Bg4 {[%clk 0:02:37]} 10. f3 {[%clk 0:02:43]}  Bh5 {[%clk 0:02:37]} 11. c3 {[%clk 0:02:41]}  Re8 {[%clk 0:02:30]} 12. Nf4 {[%clk 0:02:38]}  Bg6 {[%clk 0:02:30]} 13. Nxg6 {[%clk 0:02:37]}  hxg6 {[%clk 0:02:31]} 14. Nd2 {[%clk 0:02:36]}  Ne5 {[%clk 0:02:25]} 15. Qc2 {[%clk 0:02:30]}  d5 {[%clk 0:01:46]} 16. a4 {[%clk 0:02:16]}  a5 {[%clk 0:01:40]} 17. Rae1 {[%clk 0:02:10]}  Ned7 {[%clk 0:01:37]} 18. Kh1 {[%clk 0:01:47]}  c5 {[%clk 0:00:47]} 19. Qd3 {[%clk 0:01:23]}  Qc7 {[%clk 0:00:44]} 20. Ba3 {[%clk 0:01:13]}  Rac8 {[%clk 0:00:33]} 21. Rxe8+ {[%clk 0:01:08]}  Rxe8 {[%clk 0:00:33]} 22. Bh3 {[%clk 0:01:04]}  cxd4 {[%clk 0:00:30]} 23. cxd4 {[%clk 0:01:02]}  Ba7 {[%clk 0:00:23]} 24. Rc1 {[%clk 0:00:59]}  Qb8 {[%clk 0:00:15]} 25. Qb5 {[%clk 0:00:55]}  Nf8 {[%clk 0:00:08]} 26. Bc5 {[%clk 0:00:50]}  Bxc5 {[%clk 0:00:08]} 27. dxc5 {[%clk 0:00:46]}  Re2 {[%clk 0:00:08]} 28. Qxe2 {[%clk 0:00:45]}  Ne6 {[%clk 0:00:07]} 29. Bxe6 {[%clk 0:00:42]}  fxe6 {[%clk 0:00:05]} 30. Qxe6+ {[%clk 0:00:42]} 1-0


[Site "https://www.chess.com"]

[Event "Titled Tuesday Blitz August 08 Early 2023"]
[White "Mangialardo, Tiago Carvalho"]
[Black "Konenkin, Dmitry"]
[WhiteFideId "2130718"]
[BlackFideId "4185781"]
[WhiteElo "2071"]
[BlackElo "2281"]
[Result "0-1"]
[Round "6"]
[TimeControl "180+1"]
[Date "2023.08.08"]
[WhiteClock "0:00:06"]
[BlackClock "0:00:36"]
[Board "217"]

1. e4 {[%clk 0:03:00]}  d6 {[%clk 0:03:00]} 2. d4 {[%clk 0:02:58]}  Nf6 {[%clk 0:03:01]} 3. Nd2 {[%clk 0:02:57]}  e5 {[%clk 0:03:01]} 4. c3 {[%clk 0:02:56]}  Be7 {[%clk 0:02:59]} 5. Bd3 {[%clk 0:02:46]}  O-O {[%clk 0:02:58]} 6. Ne2 {[%clk 0:02:45]}  c6 {[%clk 0:02:55]} 7. O-O {[%clk 0:02:45]}  Re8 {[%clk 0:02:51]} 8. f4 {[%clk 0:02:43]}  Bf8 {[%clk 0:02:52]} 9. Ng3 {[%clk 0:02:34]}  Qb6 {[%clk 0:02:23]} 10. Nc4 {[%clk 0:02:26]}  Qc7 {[%clk 0:02:20]} 11. fxe5 {[%clk 0:02:26]}  dxe5 {[%clk 0:02:18]} 12. dxe5 {[%clk 0:01:47]}  Ng4 {[%clk 0:02:14]} 13. Bf4 {[%clk 0:01:46]}  Bc5+ {[%clk 0:02:07]} 14. Kh1 {[%clk 0:01:41]}  Nf2+ {[%clk 0:02:07]} 15. Rxf2 {[%clk 0:01:42]}  Bxf2 {[%clk 0:02:08]} 16. Qf3 {[%clk 0:01:34]}  Bxg3 {[%clk 0:02:03]} 17. Bxg3 {[%clk 0:01:35]}  Be6 {[%clk 0:02:02]} 18. Nd6 {[%clk 0:01:30]}  Rf8 {[%clk 0:02:00]} 19. Bc4 {[%clk 0:01:09]}  Nd7 {[%clk 0:01:48]} 20. Bxe6 {[%clk 0:01:06]}  fxe6 {[%clk 0:01:49]} 21. Qg4 {[%clk 0:01:06]}  Nc5 {[%clk 0:01:32]} 22. b4 {[%clk 0:01:06]}  Nd3 {[%clk 0:01:14]} 23. Qxe6+ {[%clk 0:01:04]}  Kh8 {[%clk 0:01:15]} 24. Qc4 {[%clk 0:00:21]}  Nf2+ {[%clk 0:01:05]} 25. Kg1 {[%clk 0:00:21]}  Qb6 {[%clk 0:00:50]} 26. Nf7+ {[%clk 0:00:20]}  Rxf7 {[%clk 0:00:51]} 27. Qxf7 {[%clk 0:00:21]}  Nxe4+ {[%clk 0:00:45]} 28. Kh1 {[%clk 0:00:16]}  Qe3 {[%clk 0:00:38]} 29. Bf4 {[%clk 0:00:12]}  Nf2+ {[%clk 0:00:36]} 30. Kg1 {[%clk 0:00:08]}  Nh3+ {[%clk 0:00:36]} 31. Kh1 {[%clk 0:00:08]}  Qg1+ {[%clk 0:00:36]} 32. Rxg1 {[%clk 0:00:06]}  Nf2# {[%clk 0:00:36]} 0-1


[Site "https://www.chess.com"]